bitfinex-derivatives/quotes_SOLF0:USTF0_20251209
["timestamp","ask_amount","ask_price","bid_price","bid_amount"]
[1765312762887,3.21669955,140.48,140.46,0.05362497]
[1765312764503,0.04669955,140.48,140.46,0.05362497]
[1765312764996,3.13669955,140.48,140.46,0.05362497]
[1765312766903,0.04669955,140.48,140.46,0.38362497]
[1765312767204,0.04669955,140.48,140.46,0.05362497]
[1765312767505,3.13669955,140.48,140.46,0.05362497]
[1765312768803,3.13669955,140.48,140.46,0.00362497]
[1765312768996,3.09,140.47,140.42,6.4084]
[1765312769706,3.09,140.45,140.4,6.4094]
[1765312769904,0.05472062,140.44,140.41,0.05227673]
[1765312770199,3.14472062,140.44,140.41,0.05227673]
[1765312771208,3.09,140.43,140.41,0.05227673]
[1765312772091,3.09,140.43,140.41,0.00227673]
[1765312772293,3.09,140.41,140.32,0.38]
[1765312773202,3.14361887,140.38,140.35,0.04602061]
[1765312775603,9.55431887,140.38,140.35,0.04602061]
[1765312775801,3.09,140.37,140.35,0.04602061]
[1765312776702,9.5012,140.37,140.35,0.04602061]
[1765312777005,3.09,140.36,140.3,6.414]
[1765312777804,3.1377889,140.34,140.32,0.04890971]
[1765312778912,3.09,140.33,140.32,0.04890971]
[1765312779808,3.09,140.33,140.27,6.4154]
[1765312780503,3.1377889,140.34,140.29,0.53]
[1765312780711,3.1377889,140.34,140.29,0.57666232]
[1765312781205,3.1377889,140.34,140.29,0.04666232]
[1765312781511,3.1377889,140.34,140.3,6.414]
[1765312781709,0.0477889,140.34,140.3,0.53]
[1765312782208,0.0477889,140.34,140.32,6.9432]
[1765312785600,0.0477889,140.34,140.33,0.53]
[1765312785802,0.0477889,140.34,140.32,6.9898216]
[1765312786408,0.0477889,140.34,140.33,0.53]
[1765312788607,0.0477889,140.34,140.32,6.9898216]
[1765312788807,0.0477889,140.34,140.32,6.4598216]
[1765312788998,0.0477889,140.34,140.32,0.0466216]
[1765312789716,3.1377889,140.34,140.32,0.0466216]
[1765312790215,3.1377889,140.34,140.27,6.4153]
[1765312790216,3.09,140.31,140.27,6.4153]
[1765312791309,3.13692037,140.3,140.28,0.05415707]
[1765312791525,3.13601439,140.3,140.28,0.05415707]
[1765312792204,9.55041439,140.3,140.28,0.05415707]
[1765312792401,3.09,140.29,140.28,0.05415707]
[1765312794713,3.13601439,140.3,140.28,0.05415707]
[1765312795513,3.23,140.29,140.28,0.05415707]
[1765312800311,3.23,140.26,140.23,6.4171]
[1765312800515,3.23,140.26,140.19,100.4342]
[1765312800819,3.23,140.26,140.2,99.8487]
[1765312801122,3.23,140.29,140.22,0.58]
[1765312801323,3.23,140.29,140.26,6.416]
[1765312801513,3.23,140.29,140.26,6.46117416]
[1765312801722,3.2827399,140.29,140.26,6.46117416]
[1765312802425,0.0527399,140.29,140.26,7.04117416]
[1765312802621,0.0527399,140.29,140.27,6.4154]
[1765312802822,3.2827399,140.29,140.27,6.4154]
[1765312803728,0.0527399,140.29,140.28,0.58]
[1765312803927,3.23,140.33,140.29,0.58]
[1765312804328,60.62,140.35,140.29,0.58]
[1765312804518,63.85,140.35,140.29,0.58]
[1765312804819,3.23,140.34,140.26,100.3836]
[1765312805120,0.05254994,140.31,140.29,0.04867011]
[1765312806526,0.05254994,140.31,140.29,6.46327011]
[1765312806731,3.28,140.38,140.31,0.58]
[1765312807824,3.32533364,140.36,140.26,100.3836]
[1765312808129,3.28,140.36,140.26,100.3836]
[1765312808324,3.28,140.33,140.24,99.8202]
[1765312808622,3.28,140.32,140.22,100.4617]
[1765312808824,3.28,140.27,140.26,0.05308493]
[1765312810127,0.05341778,140.28,140.26,0.05308493]
[1765312810324,0.05341778,140.28,140.26,0.68308493]
[1765312810520,0.05341778,140.28,140.26,0.05308493]
[1765312810715,3.33341778,140.28,140.26,0.05308493]
[1765312810921,3.33341778,140.28,140.26,6.46908493]
[1765312811126,3.33341778,140.28,140.26,0.05308493]
[1765312813017,3.33341778,140.28,140.26,6.46898493]
[1765312813326,3.28,140.32,140.27,0.63]
[1765312813628,3.28,140.32,140.26,99.85508493]
[1765312814127,3.28,140.32,140.26,100.48508493]
[1765312814330,3.32693809,140.3,140.26,0.05308493]
[1765312814528,0.04648103,140.29,140.27,0.05393644]
[1765312815029,3.32648103,140.29,140.27,0.05393644]
[1765312815225,0.04648103,140.29,140.27,0.05393644]
[1765312815532,0.04648103,140.29,140.27,7.09943644]
[1765312817530,3.28,140.33,140.28,0.63]
[1765312817725,3.28,140.33,140.29,0.63]
[1765312818730,3.32558752,140.32,140.27,7.31410079]
[1765312819032,3.32558752,140.32,140.28,0.05034103]
[1765312819339,0.04558752,140.32,140.3,6.4141]
[1765312821129,3.32558752,140.32,140.28,0.05034103]
[1765312822232,3.28,140.3,140.28,0.05034103]
[1765312825737,0.04558752,140.32,140.3,0.63]
[1765312826033,0.04558752,140.32,140.3,6.63873218]
[1765312826237,0.04558752,140.32,140.3,7.26873218]
[1765312826636,0.04558752,140.32,140.3,0.63]
[1765312826827,0.04558752,140.32,140.3,7.0439]
[1765312827341,3.05558752,140.32,140.28,0.05034103]
[1765312827842,3.05558752,140.32,140.28,6.46534103]
[1765312828533,0.04558752,140.32,140.29,6.4145]
[1765312828728,0.04558752,140.32,140.29,0.63]
[1765312829134,3.05558752,140.32,140.28,0.68034103]
[1765312830443,3.05558752,140.32,140.28,7.09524103]
[1765312831943,3.05558752,140.32,140.29,6.4146]
[1765312832440,0.04558752,140.32,140.29,7.0446]
[1765312832634,0.04558752,140.32,140.3,7.0441]
[1765312832944,0.04558752,140.32,140.31,0.63]
[1765312833146,0.04558752,140.32,140.3,13.05283218]
[1765312833947,0.04558752,140.32,140.3,6.4141]
[1765312834438,0.04558752,140.32,140.31,0.63]
[1765312834638,60.62,140.35,140.32,7.0433]
[1765312834839,63.63,140.35,140.32,6.4133]
[1765312835238,63.63,140.35,140.3,13.68263218]
[1765312835440,63.63,140.35,140.3,7.26873218]
[1765312835641,0.04598725,140.34,140.31,0.04598024]
[1765312836547,0.04598725,140.34,140.31,6.45968024]
[1765312838853,0.04598725,140.34,140.32,6.4133]
[1765312840549,0.04598725,140.34,140.33,0.63]
[1765312840750,3.01,140.39,140.33,0.63]
[1765312841050,3.01,140.39,140.34,0.63]
[1765312841249,3.01,140.39,140.32,6.64610412]
[1765312841445,3.01,140.39,140.32,7.27610412]
[1765312841853,3.06153904,140.37,140.34,0.05379189]
[1765312842868,0.05153904,140.37,140.34,0.68379189]
[1765312844464,0.05153904,140.37,140.35,6.4118]
[1765312844661,3.06153904,140.37,140.35,6.4118]
[1765312845869,0.05153904,140.37,140.35,6.4118]
[1765312847060,3.06153904,140.37,140.35,6.4118]
[1765312848570,0.05153904,140.37,140.36,6.4115]
[1765312849174,0.05153904,140.37,140.36,7.0415]
[1765312849971,3.06153904,140.37,140.35,6.4118]
[1765312850464,0.05153904,140.37,140.35,6.4118]
[1765312850871,3.06153904,140.37,140.34,0.05379189]
[1765312852469,3.01,140.35,140.34,0.05379189]
[1765312852675,0.05153904,140.37,140.34,0.68379189]
[1765312853670,3.06153904,140.37,140.34,0.05379189]
[1765312854572,9.47283904,140.37,140.34,0.05379189]
[1765312854775,3.06153904,140.37,140.34,0.05379189]
[1765312855367,6.4117,140.36,140.34,0.05379189]
[1765312855574,3.3,140.35,140.34,0.05379189]
[1765312859082,3.3,140.33,140.27,6.64610412]
[1765312860080,3.35302928,140.31,140.29,0.04692032]
[1765312860283,3.34958534,140.31,140.29,0.04692032]
[1765312861287,0.04958534,140.31,140.29,0.72692032]
[1765312861476,3.3,140.37,140.3,0.68]
[1765312861671,60.6,140.39,140.32,7.32610412]
[1765312861876,70.3102,140.39,140.35,0.68]
[1765312862377,70.3102,140.39,140.33,6.64610412]
[1765312862378,3.3,140.38,140.33,6.64610412]
[1765312862581,60.6,140.39,140.34,0.04592969]
[1765312862582,3.3,140.36,140.34,0.04592969]
[1765312863170,3.3,140.35,140.28,6.64610412]
[1765312863887,60.6,140.34,140.28,6.64610412]
[1765312864190,0.05045089,140.32,140.3,0.05044932]
[1765312864383,3.35045089,140.32,140.3,0.05044932]
[1765312865492,9.76395089,140.32,140.3,0.05044932]
[1765312865785,3.06,140.31,140.3,0.05044932]
[1765312866479,3.06,140.31,140.3,0.00044932]
[1765312866675,3.06,140.29,140.24,6.64610412]
[1765312866881,3.06,140.29,140.24,7.42610412]
[1765312867186,3.06,140.28,140.24,7.1969]
[1765312867587,0.05408567,140.27,140.25,0.05057981]
[1765312868192,3.11408567,140.27,140.25,0.05057981]
[1765312868688,0.05408567,140.27,140.25,0.05057981]
[1765312869384,0.05408567,140.27,140.25,7.24697981]
[1765312869683,0.05408567,140.27,140.26,0.78]
[1765312872389,0.05408567,140.27,140.25,6.46697981]
[1765312872980,0.05408567,140.27,140.26,0.78]
[1765312874286,0.05408567,140.27,140.25,6.46697981]
[1765312874489,3.11408567,140.27,140.25,0.05057981]
[1765312881397,3.06,140.26,140.25,0.05057981]
[1765312883197,3.06,140.26,140.13,12.8435]
[1765312883198,3.06,140.23,140.16,0.83]
[1765312883402,3.06,140.21,140.16,0.83]
[1765312883596,3.06,140.21,140.16,7.2505]
[1765312883792,3.06,140.21,140.17,0.83]
[1765312884096,3.1066367,140.2,140.18,0.04657612]
[1765312885397,0.0466367,140.2,140.18,0.04657612]
[1765312886193,3.2666367,140.2,140.18,0.04657612]
[1765312886701,3.22,140.19,140.18,0.04657612]
[1765312888898,3.22,140.18,140.13,0.83]
[1765312889104,3.22,140.16,140.08,6.62701897]
[1765312889299,3.22,140.14,140.07,7.45701897]
[1765312889495,3.22,140.14,140.07,0.83]
[1765312889698,3.22,140.14,140.1,0.83]
[1765312889903,0.05466542,140.12,140.1,0.83]
[1765312890299,0.05466542,140.12,140.1,7.2533]
[1765312890900,0.05466542,140.12,140.11,0.83]
[1765312891207,70.2805,140.17,140.13,0.83]
[1765312891505,63.86,140.17,140.13,0.83]
[1765312891898,63.86,140.17,140.14,0.83]
[1765312891899,3.22,140.17,140.14,0.83]
[1765312892095,0.04548499,140.17,140.14,0.87570708]
[1765312892494,0.04548499,140.17,140.16,0.83]
[1765312893096,0.04548499,140.17,140.15,7.251]
[1765312894000,0.04548499,140.17,140.15,6.421]
[1765312894205,0.04548499,140.17,140.15,7.251]
[1765312896001,3.26548499,140.17,140.14,0.04570708]
[1765312897015,3.26548499,140.17,140.14,0.87570708]
[1765312897199,3.26548499,140.17,140.14,6.46720708]
[1765312898121,3.26548499,140.17,140.14,7.29720708]
[1765312898897,0.04548499,140.17,140.14,7.29720708]
[1765312899806,0.04548499,140.17,140.16,0.83]
[1765312900102,0.04548499,140.17,140.15,7.2511]
[1765312902409,0.04548499,140.17,140.14,0.04570708]
[1765312902610,3.26548499,140.17,140.14,0.04570708]
[1765312904010,0.04548499,140.17,140.14,0.87570708]
[1765312905216,0.04548499,140.17,140.15,6.4209]
[1765312905506,3.26548499,140.17,140.14,0.04570708]
[1765312905810,9.68578499,140.17,140.14,0.04570708]
[1765312906609,3.22,140.16,140.14,0.04570708]
[1765312909603,9.6407,140.16,140.14,0.04570708]
[1765312909804,3.22,140.15,140.14,0.04570708]
[1765312911311,3.22,140.16,140.14,0.04570708]
[1765312914018,3.22,140.16,140.08,167.21851897]
[1765312914019,3.22,140.15,140.08,0.83]
[1765312914414,3.22,140.15,140.05,107.46071897]
[1765312914716,5.86078197,140.12,140.06,0.88]
[1765312915214,0.05194279,140.1,140.08,7.35665866]
[1765312916815,0.05194279,140.1,140.09,0.88]
[1765312918305,0.05194279,140.1,140.08,6.47665866]
[1765312918508,3.08194279,140.1,140.08,0.05265866]
[1765312918708,3.03,140.09,140.01,67.30701897]
[1765312919014,3.03,140.09,140.02,0.88]
[1765312919817,3.0794523,140.07,140.04,7.3518372]
[1765312920210,3.0794523,140.07,140.04,0.0457372]
[1765312920609,0.0494523,140.07,140.04,0.9257372]
[1765312921312,3.0794523,140.07,140.04,0.9257372]
[1765312921622,3.0794523,140.07,140.04,0.0457372]
[1765312922014,3.03,140.06,140.04,0.0457372]
[1765312922525,0.0494523,140.07,140.04,0.9257372]
[1765312922910,0.0494523,140.07,140.05,7.3057]
[1765312923916,0.0494523,140.07,140.05,6.4257]
[1765312924209,3.0794523,140.07,140.04,0.0457372]
[1765312926626,0.0494523,140.07,140.05,0.87]
[1765312927325,0.0494523,140.07,140.06,0.87]
[1765312928314,3.23,140.14,140.09,0.87]
[1765312928625,3.23,140.14,140.07,100.8113]
[1765312928813,3.23,140.14,140.1,6.4233]
[1765312929016,3.23,140.14,140.07,0.87]
[1765312929319,3.23,140.11,140.09,0.04718199]
[1765312935026,3.23,140.08,140.01,6.63652047]
[1765312935219,3.23,140.08,139.99,0.87]
[1765312935527,3.23,140.04,140.0,6.4279]
[1765312935727,3.23,140.04,139.99,0.87]
[1765312936113,3.27779137,140.03,140.0,0.04511392]
[1765312936926,0.04779137,140.03,140.0,9.56301392]
[1765312937429,0.04779137,140.03,140.0,3.13511392]
[1765312938112,0.04779137,140.03,140.0,0.04511392]
[1765312938113,3.27779137,140.03,140.0,0.04511392]
[1765312939130,9.70449137,140.03,140.0,0.04511392]
[1765312940326,3.23,140.02,140.0,0.04511392]
[1765312942925,6.47449137,140.03,140.0,0.04511392]
[1765312942926,3.27779137,140.03,140.0,0.04511392]
[1765312946732,9.70469137,140.03,140.0,0.04511392]
[1765312947436,3.06,140.02,140.0,0.04511392]
[1765312949038,0.04779137,140.03,140.0,3.13511392]
[1765312949728,3.10779137,140.03,140.0,3.13511392]
[1765312950033,3.10779137,140.03,140.0,9.56281392]
[1765312951938,0.04779137,140.03,140.01,9.5175]
[1765312952642,3.06,140.07,140.02,3.09]
[1765312952828,124.25329392,140.14,140.05,9.5156]
[1765312952829,3.06,140.1,140.05,9.5156]
[1765312953430,3.06,140.1,140.06,9.515]
[1765312953741,0.05045097,140.09,140.07,0.04623128]
[1765312953923,0.0459061,140.09,140.07,3.14423696]
[1765312954126,3.06,140.14,140.08,3.09]
[1765312954637,3.06,140.14,140.11,9.5129]
[1765312955136,3.06,140.14,140.09,6.4235]
[1765312955338,3.11237524,140.14,140.11,0.05151067]
[1765312956429,9.53407524,140.14,140.11,0.05151067]
[1765312957339,3.11237524,140.14,140.11,0.05151067]
[1765312958237,0.05237524,140.14,140.12,9.5124]
[1765312958445,0.05237524,140.14,140.13,3.09]
[1765312958637,3.06,140.2,140.13,3.09]
[1765312959039,3.06,140.2,140.15,9.5108]
[1765312959537,3.06,140.2,140.16,6.4203]
[1765312959740,0.05136386,140.19,140.16,9.56195658]
[1765312960535,0.05136386,140.19,140.17,9.5099]
[1765312960734,0.05136386,140.19,140.16,0.05165658]
[1765312960936,0.05136386,140.19,140.16,3.14165658]
[1765312965237,0.05136386,140.19,140.17,3.09]
[1765312965945,3.11136386,140.19,140.16,0.05165658]
[1765312967041,3.06,140.17,140.16,0.05165658]
[1765312968046,3.06,140.18,140.16,0.05165658]
[1765312969536,9.4799,140.18,140.16,0.05165658]
[1765312970140,3.06,140.17,140.16,0.05165658]
[1765312970341,3.11136386,140.19,140.16,0.05165658]
[1765312970635,0.05136386,140.19,140.16,3.14165658]
[1765312971240,3.11136386,140.19,140.16,0.05165658]
[1765312971442,3.06,140.18,140.16,0.05165658]
[1765312972151,3.06,140.17,140.16,0.05165658]
[1765312972751,3.06,140.17,140.1,3.09]
[1765312972752,3.06,140.15,140.11,6.4229]
[1765312973050,3.06,140.15,140.1,3.09]
[1765312973850,0.05069831,140.14,140.11,0.04968905]
[1765312974249,0.05069831,140.14,140.11,3.13968905]
[1765312974446,3.11069831,140.14,140.11,3.13968905]
[1765312974647,3.11069831,140.14,140.11,0.04968905]
[1765312975260,0.05069831,140.14,140.11,3.17968905]
[1765312975454,0.05069831,140.14,140.13,3.13]
[1765312975654,0.05069831,140.14,140.12,6.4224]
[1765312975850,0.05069831,140.14,140.12,9.5524]
[1765312976552,0.05069831,140.14,140.11,0.04968905]
[1765312976757,0.05069831,140.14,140.11,3.17968905]
[1765312977560,3.08069831,140.14,140.11,3.17968905]
[1765312978456,9.50239831,140.14,140.11,3.17968905]
[1765312980364,0.05069831,140.14,140.11,3.17968905]
[1765312980557,0.05069831,140.14,140.11,9.60258905]
[1765312981359,0.05069831,140.14,140.12,9.5525]
[1765312982162,0.05069831,140.14,140.13,3.13]
[1765312985275,3.03,140.21,140.17,3.13]
[1765312986063,63.86,140.24,140.18,9.7296]
[1765312986267,0.05130701,140.22,140.2,0.05126484]
[1765312986568,0.05263151,140.22,140.2,0.05126484]
[1765312987873,3.23263151,140.22,140.2,0.05126484]
[1765312989385,3.18,140.21,140.14,6.4212]
[1765312989681,3.18,140.21,140.12,3.31]
[1765312989883,3.18,140.18,140.12,9.7322]
[1765312990181,3.18,140.18,140.12,6.4222]
[1765312990383,99.8462,140.21,140.12,6.4222]
[1765312990384,3.23320813,140.16,140.14,0.04560355]
[1765312990580,3.22983122,140.16,140.14,0.04560355]
[1765312996292,9.65063122,140.16,140.14,0.04560355]
[1765312996492,3.18,140.15,140.14,0.04560355]
[1765312997493,3.22983122,140.16,140.14,0.04560355]
[1765313001886,3.18,140.14,140.11,9.93459669]
[1765313002087,3.22983122,140.16,140.11,3.31]
[1765313002794,3.18,140.15,140.11,9.7329]
[1765313002985,3.18,140.15,140.12,0.05316312]
[1765313003788,6.4217,140.14,140.12,0.05316312]
[1765313003992,9.6017,140.14,140.12,0.05316312]
[1765313004191,3.18,140.13,140.12,0.05316312]
[1765313006598,3.12,140.1,140.07,6.62459669]
[1765313006800,3.12,140.1,140.06,6.62459669]
[1765313007598,0.04915051,140.09,140.07,0.0475442]
[1765313007799,3.16915051,140.09,140.07,0.0475442]
[1765313008990,3.12,140.08,140.07,0.0475442]
[1765313009692,0.04915051,140.09,140.07,3.2175442]
[1765313009994,3.16915051,140.09,140.07,0.0475442]
[1765313012007,9.59315051,140.09,140.07,0.0475442]
[1765313012207,3.12,140.08,140.07,0.0475442]
[1765313015003,63.82,140.08,140.07,0.0475442]
[1765313016509,9.5451,140.07,140.03,3.17]
[1765313017005,3.12,140.06,140.02,6.4268]
[1765313017209,3.12,140.06,140.02,9.5968]
[1765313017405,3.16803054,140.05,140.03,0.05148117]
[1765313019005,9.59393054,140.05,140.03,0.05148117]
[1765313019608,3.16803054,140.05,140.03,0.05148117]
[1765313021004,9.5462,140.04,140.03,0.05148117]
[1765313021308,3.12,140.03,139.96,3.17]
[1765313021613,66.672889,140.02,139.96,3.17]
[1765313022304,66.672889,140.02,139.98,0.0498323]
[1765313022511,0.0519873,140.0,139.98,0.0498323]
[1765313023201,3.1719873,140.0,139.98,0.0498323]
[1765313023709,0.0519873,140.0,139.98,3.2198323]
[1765313024709,0.0519873,140.0,139.98,9.6486323]
[1765313024899,0.0519873,140.0,139.99,3.17]
[1765313026009,0.0519873,140.0,139.98,6.4786323]
[1765313026010,3.1719873,140.0,139.98,0.0498323]
[1765313027210,9.6002873,140.0,139.98,0.0498323]
[1765313027409,3.12,139.99,139.98,0.0498323]
[1765313028616,0.0519873,140.0,139.98,3.2198323]
[1765313029720,0.0519873,140.0,139.98,9.6487323]
[1765313029920,3.1719873,140.0,139.98,0.0498323]
[1765313030310,3.1719873,140.0,139.98,3.2198323]
[1765313030311,0.0519873,140.0,139.98,3.2198323]
[1765313031608,0.0519873,140.0,139.98,9.6486323]
[1765313033210,0.0519873,140.0,139.99,3.17]
[1765313034119,0.0519873,140.0,139.99,9.5985]
[1765313034315,3.1719873,140.0,139.98,0.0498323]
[1765313036506,0.0519873,140.0,139.98,3.1898323]
[1765313036823,3.15,140.06,139.99,3.14]
[1765313037723,3.15,140.06,140.01,3.186052]
[1765313037724,0.04579718,140.04,140.01,3.186052]
[1765313038025,3.19579718,140.04,140.01,3.186052]
[1765313038224,9.62199718,140.04,140.01,3.186052]
[1765313039622,3.15,140.03,140.01,0.046052]
[1765313039922,3.15,140.02,140.01,0.046052]
[1765313042026,9.5767,140.03,140.01,0.046052]
[1765313042228,3.15,140.02,140.01,0.046052]
[1765313043025,3.15,140.0,139.96,3.14]
[1765313043322,3.15,139.98,139.9,9.75839283]
[1765313043524,6.4304,139.95,139.91,6.4319]
[1765313043720,3.15,139.94,139.9,3.14]
[1765313043920,0.04782729,139.93,139.91,0.04526371]
[1765313044320,3.19782729,139.93,139.91,0.04526371]
[1765313044725,0.04782729,139.93,139.91,3.18526371]
[1765313056736,0.04782729,139.93,139.91,9.61706371]
[1765313057043,0.04782729,139.93,139.92,3.19]
[1765313060657,2.832889,139.99,139.94,3.19]
[1765313060950,3.1,139.96,139.92,3.19]
[1765313061149,5.932889,139.97,139.92,3.19]
[1765313061445,5.932889,139.99,139.94,3.19]
[1765313061745,3.14611142,139.98,139.94,3.19]
[1765313062445,9.57511142,139.98,139.94,9.6207]
[1765313062748,9.57511142,139.98,139.95,3.19]
[1765313062951,6.47511142,139.98,139.95,3.19]
[1765313063444,0.04611142,139.98,139.95,3.19]
[1765313064248,0.04611142,139.98,139.96,6.4298]
[1765313064448,0.04611142,139.98,139.97,3.19]
[1765313068955,0.04611142,139.98,139.96,3.32512896]
[1765313071862,9.59501142,139.98,139.96,0.04512896]
[1765313072152,3.16611142,139.98,139.96,0.04512896]
[1765313072360,3.16611142,139.98,139.96,3.32512896]
[1765313073157,3.16611142,139.98,139.96,0.04512896]
[1765313075055,0.04611142,139.98,139.96,3.32512896]
[1765313078260,0.04611142,139.98,139.96,9.75492896]
[1765313078461,0.04611142,139.98,139.97,3.28]
[1765313080662,3.12,140.04,139.99,3.28]
[1765313080958,71.61573766,140.06,139.99,3.28]
[1765313081158,74.73573766,140.06,139.99,3.28]
[1765313081358,3.12,140.05,140.01,9.7075]
[1765313081556,0.05337175,140.04,140.02,0.04588974]
[1765313081864,3.17337175,140.04,140.02,0.04588974]
[1765313084758,0.05337175,140.04,140.02,3.32588974]
[1765313085354,60.76,140.06,140.05,3.28]
[1765313087866,0.04518792,140.07,140.05,3.28]
[1765313088968,3.16518792,140.07,140.03,3.28]
[1765313090078,6.4254,140.06,140.02,3.32588974]
[1765313090363,0.04518792,140.07,140.03,9.89839283]
[1765313090563,0.04518792,140.07,140.04,3.28]
[1765313091367,3.16518792,140.07,140.04,3.28]
[1765313092370,3.12,140.06,140.02,3.32588974]
[1765313093572,9.5454,140.06,140.02,3.32588974]
[1765313100266,3.12,140.06,140.02,3.32588974]
[1765313100469,3.15518792,140.07,140.03,3.1]
[1765313101073,0.04518792,140.07,140.03,3.1]
[1765313101376,3.11,140.13,140.07,3.1]
[1765313101569,160.5919,140.17,140.06,99.9456]
[1765313101570,3.11,140.1,140.06,3.1]
[1765313101968,3.11,140.1,140.04,3.1]
[1765313102159,63.83,140.12,140.07,3.1]
[1765313102366,3.11,140.15,140.09,3.1]
[1765313102565,143.42505452,140.18,140.09,3.1]
[1765313102566,0.05161832,140.11,140.09,3.1]
[1765313102773,0.05141517,140.11,140.09,3.15333819]
[1765313103581,9.5304,140.17,140.11,3.1]
[1765313104276,143.42505452,140.18,140.11,3.1]
[1765313104277,3.11,140.15,140.11,3.1]
[1765313104485,3.11,140.15,140.07,106.55659283]
[1765313104486,3.11,140.15,140.07,6.61839283]
[1765313104673,9.57829998,140.12,140.1,0.04972937]
[1765313104864,3.11,140.11,140.1,0.04972937]
[1765313107776,3.11,140.09,140.05,3.1]
[1765313108178,3.11,140.09,140.03,9.4663]
[1765313108477,3.11,140.09,140.05,3.04]
[1765313108869,0.0511595,140.08,140.06,3.08749798]
[1765313110170,0.0511595,140.08,140.07,3.04]
[1765313111878,0.0511595,140.08,140.06,6.47269798]
[1765313112082,0.0511595,140.08,140.06,0.04749798]
[1765313112377,0.0511595,140.08,140.06,3.08749798]
[1765313112986,0.0511595,140.08,140.06,6.47269798]
[1765313113184,3.1611595,140.08,140.06,0.04749798]
[1765313116486,0.0511595,140.08,140.06,3.08749798]
[1765313117488,0.0511595,140.08,140.06,9.51259798]
[1765313117677,0.0511595,140.08,140.07,3.04]
[1765313118482,0.0511595,140.08,140.06,9.51259798]
[1765313118678,0.0511595,140.08,140.07,3.04]
[1765313121686,0.0511595,140.08,140.06,6.47259798]
[1765313121687,3.1611595,140.08,140.06,0.04749798]
[1765313126391,9.5854595,140.08,140.06,0.04749798]
[1765313126995,3.08,140.07,140.06,0.04749798]
[1765313130084,12.33715081,140.07,140.06,0.04749798]
[1765313130477,0.0511595,140.08,140.06,3.12749798]
[1765313130686,3.1311595,140.08,140.06,3.12749798]
[1765313131289,0.0511595,140.08,140.07,3.08]
[1765313131690,0.0511595,140.08,140.06,0.04749798]
[1765313131691,3.1311595,140.08,140.06,0.04749798]
[1765313132394,5.91235081,140.07,140.06,0.04749798]
[1765313135193,6.4755595,140.08,140.06,0.04749798]
[1765313135194,3.1311595,140.08,140.06,0.04749798]
[1765313135592,3.1311595,140.08,140.06,3.12749798]
[1765313135788,0.0511595,140.08,140.06,3.12749798]
[1765313136092,0.0511595,140.08,140.06,9.55259798]
[1765313136394,0.0511595,140.08,140.07,3.08]
[1765313137790,0.0511595,140.08,140.06,6.47259798]
[1765313137993,0.0511595,140.08,140.06,9.55259798]
[1765313139589,3.1311595,140.08,140.06,3.12749798]
[1765313139896,3.1311595,140.08,140.06,0.04749798]
[1765313141297,0.0511595,140.08,140.06,9.74589081]
[1765313141592,3.1311595,140.08,140.06,0.04749798]
[1765313143296,5.91235081,140.07,140.06,0.04749798]
[1765313144790,3.08,140.04,140.01,6.66849283]
[1765313144996,3.08,140.03,139.99,9.74849283]
[1765313145793,3.08,140.01,140.0,0.04635494]
[1765313146389,9.5076,140.01,140.0,0.04635494]
[1765313159295,3.08,140.01,140.0,0.04635494]
[1765313160106,66.79311703,140.02,140.0,0.04635494]
[1765313160307,63.98076622,140.02,140.0,0.04635494]
[1765313161011,66.81311703,140.02,140.0,0.04635494]
[1765313161210,3.19,140.01,140.0,0.04635494]
[1765313162110,3.19,139.99,139.95,9.61]
[1765313162309,63.62311703,140.02,139.96,3.18]
[1765313162310,3.19,140.0,139.96,3.18]
[1765313162515,63.93,140.01,139.96,3.18]
[1765313162814,3.19,140.0,139.96,3.18]
[1765313163213,0.05148382,139.99,139.97,3.22592492]
[1765313163515,0.05148382,139.99,139.97,9.65532492]
[1765313164011,0.05148382,139.99,139.98,3.18]
[1765313164209,3.19,140.03,140.0,3.18]
[1765313164402,6.02235081,140.06,140.0,3.18]
[1765313164607,3.19,140.05,140.0,3.18]
[1765313165110,9.6158,140.05,140.01,6.4273]